bitfinex/quotes_SOLUSD_20250216
["timestamp","ask_amount","ask_price","bid_price","bid_amount"]
[1739692624272,5.1912,192.64,192.52,34.14332836]
[1739692624273,1.29894412,192.57,192.52,34.14332836]
[1739692624467,1.29894412,192.57,192.54,20.73147983]
[1739692624670,1.29894412,192.57,192.56,20.73147983]
[1739692625056,1.29894412,192.57,192.56,34.14332836]
[1739692626262,22.03042395,192.63,192.56,34.14332836]
[1739692627581,20.73147983,192.62,192.56,13.41184853]
[1739692627966,22.03042395,192.62,192.56,13.41184853]
[1739692628169,1.29894412,192.62,192.56,34.14332836]
[1739692628362,1.29894412,192.62,192.56,39.33642836]
[1739692630070,1.29894412,192.61,192.56,39.33642836]
[1739692630274,1.29894412,192.61,192.57,20.73147983]
[1739692630669,1.29894412,192.61,192.58,35.14332836]
[1739692630865,1.29894412,192.61,192.6,35.14332836]
[1739692631087,1.29894412,192.61,192.6,36.78072836]
[1739692631758,0.41042118,192.63,192.62,14.41184853]
[1739692631957,0.41042118,192.63,192.62,35.14332836]
[1739692632363,0.41042118,192.63,192.62,40.33482836]
[1739692633368,13.8218111,192.71,192.65,1.0]
[1739692633566,13.8218111,192.71,192.68,13.41184853]
[1739692633773,0.063,192.73,192.68,13.41184853]
[1739692634577,20.79447983,192.73,192.66,20.73147983]
[1739692635886,20.73147983,192.7,192.63,20.73147983]
[1739692636578,5.1896,192.7,192.64,20.73147983]
[1739692636999,5.1891,192.71,192.64,20.73147983]
[1739692637192,5.1891,192.71,192.65,20.73147983]
[1739692639001,3.74332458,192.7,192.65,20.73147983]
[1739692640887,8.93282458,192.7,192.65,20.73147983]
[1739692641279,3.74332458,192.7,192.65,20.73147983]
[1739692641603,3.74332458,192.7,192.67,12.92811995]
[1739692641886,3.74332458,192.7,192.66,12.92811995]
[1739692642990,3.74332458,192.7,192.68,12.92811995]
[1739692643568,3.74332458,192.71,192.68,12.92811995]
[1739692643775,3.74332458,192.71,192.66,26.33996848]
[1739692644377,3.74332458,192.71,192.66,27.33996848]
[1739692644671,3.74332458,192.71,192.68,12.92811995]
[1739692645073,0.063,192.73,192.7,12.92811995]
[1739692645577,0.063,192.73,192.71,13.41184853]
[1739692645775,0.063,192.73,192.7,12.92811995]
[1739692646491,0.063,192.73,192.71,12.92811995]
[1739692646995,0.063,192.73,192.72,12.92811995]
[1739692650093,0.063,192.73,192.72,26.33996848]
[1739692652498,0.063,192.73,192.7,13.92811995]
[1739692652805,0.063,192.73,192.71,13.41184853]
[1739692653996,0.063,192.73,192.67,12.92811995]
[1739692654180,12.99111995,192.73,192.66,12.92811995]
[1739692654605,5.1888,192.72,192.67,13.41184853]
[1739692655299,5.1888,192.72,192.67,27.33996848]
[1739692655980,5.1888,192.72,192.67,26.33996848]
[1739692656501,5.1888,192.72,192.67,27.33996848]
[1739692657099,5.2516,192.73,192.67,27.33996848]
[1739692657292,5.2516,192.73,192.67,26.33996848]
[1739692657680,5.2516,192.73,192.67,27.33996848]
[1739692658304,5.2516,192.73,192.67,26.33996848]
[1739692658707,5.2516,192.73,192.67,27.33996848]
[1739692658998,3.77822937,192.72,192.67,27.33996848]
[1739692659202,3.77822937,192.72,192.67,26.33996848]
[1739692659415,3.77822937,192.72,192.67,27.33996848]
[1739692660508,5.1891,192.71,192.67,27.33996848]
[1739692660897,5.1888,192.72,192.69,12.92811995]
[1739692662112,0.063,192.73,192.69,12.92811995]
[1739692662306,5.2516,192.73,192.69,12.92811995]
[1739692662604,0.063,192.73,192.7,12.92811995]
[1739692662984,0.063,192.73,192.71,12.92811995]
[1739692664105,0.063,192.73,192.72,26.33996848]
[1739692664811,0.063,192.73,192.7,12.92811995]
[1739692665510,12.99111995,192.73,192.65,13.92811995]
[1739692666001,12.99111995,192.73,192.68,13.41184853]
[1739692666194,5.1888,192.72,192.65,13.41184853]
[1739692666395,12.92811995,192.71,192.65,13.41184853]
[1739692666593,12.92811995,192.71,192.66,1.0]
[1739692666792,5.1888,192.72,192.66,1.0]
[1739692667106,6.82964597,192.71,192.66,1.0]
[1739692667811,8.12729308,192.71,192.66,1.0]
[1739692668213,5.09189497,192.71,192.66,1.0]
[1739692668608,3.79424786,192.7,192.66,1.0]
[1739692669401,1.29764711,192.69,192.66,1.0]
[1739692670492,1.29764711,192.69,192.66,6.1904]
[1739692670804,1.29764711,192.69,192.68,13.41184853]
[1739692671114,1.29764711,192.69,192.68,14.41184853]
[1739692671289,1.29764711,192.69,192.68,27.33996848]
[1739692671492,1.29764711,192.69,192.68,33.52986848]
[1739692671695,0.063,192.73,192.72,13.41184853]
[1739692671894,0.063,192.73,192.72,26.33996848]
[1739692673912,0.063,192.73,192.72,13.41184853]
[1739692675215,0.063,192.73,192.69,12.92811995]
[1739692675400,0.063,192.73,192.67,13.92811995]
[1739692676201,0.063,192.73,192.68,13.41184853]
[1739692677109,3.81884947,192.72,192.68,13.41184853]
[1739692677300,6.87384201,192.72,192.68,13.41184853]
[1739692677500,8.1713304,192.72,192.68,13.41184853]
[1739692677817,13.3601304,192.72,192.68,26.33996848]
[1739692678522,13.3601304,192.72,192.68,13.41184853]
[1739692678720,3.81884947,192.71,192.68,13.41184853]
[1739692678937,5.11633786,192.71,192.68,13.41184853]
[1739692680525,3.81884947,192.7,192.66,12.92811995]
[1739692680834,3.81884947,192.7,192.65,12.92811995]
[1739692681709,3.81884947,192.7,192.66,13.41184853]
[1739692681914,3.81884947,192.69,192.66,26.33996848]
[1739692682117,3.81884947,192.69,192.67,12.92811995]
[1739692683131,5.1891,192.71,192.67,12.92811995]
[1739692683816,5.2516,192.73,192.67,12.92811995]
[1739692684409,1.29756865,192.7,192.67,12.92811995]
[1739692685110,1.29756865,192.7,192.68,12.92811995]
[1739692685933,1.29756865,192.7,192.68,13.41184853]
[1739692686237,0.063,192.73,192.68,13.41184853]
[1739692686535,5.2516,192.73,192.68,13.41184853]
[1739692686833,12.92811995,192.72,192.64,13.92811995]
[1739692687037,12.92811995,192.71,192.64,12.92811995]
[1739692687224,18.2231,192.73,192.63,12.95811995]
[1739692687225,12.92811995,192.7,192.63,12.95811995]
[1739692687624,12.92811995,192.7,192.64,13.41184853]
[1739692688031,3.05745802,192.69,192.64,13.41184853]
[1739692688240,8.24715802,192.69,192.64,13.41184853]
[1739692688413,8.24715802,192.69,192.64,27.33996848]
[1739692688614,3.05745802,192.69,192.65,12.92811995]
[1739692688814,3.82179426,192.68,192.65,12.92811995]
[1739692689519,5.11953922,192.68,192.65,12.92811995]
[1739692690215,5.11953922,192.68,192.67,13.41184853]
[1739692690417,1.29774496,192.68,192.67,13.41184853]
[1739692690617,5.1888,192.72,192.67,13.41184853]
[1739692691232,5.1888,192.72,192.67,26.33996848]
[1739692691432,0.063,192.73,192.69,26.33996848]
[1739692691740,0.063,192.73,192.71,12.92811995]
[1739692691948,1.29751949,192.72,192.7,12.92811995]
[1739692693030,1.29751949,192.72,192.69,26.33996848]
[1739692693232,5.1889,192.72,192.69,13.41184853]
[1739692693539,5.1889,192.72,192.66,12.92811995]
[1739692693839,18.11701995,192.72,192.65,12.92811995]
[1739692694042,18.11701995,192.72,192.66,13.41184853]
[1739692694832,1.29758968,192.71,192.66,13.41184853]
[1739692695032,4.35454729,192.71,192.66,13.41184853]
[1739692695429,3.82116231,192.7,192.66,13.41184853]
[1739692696652,9.01056231,192.7,192.66,13.41184853]
[1739692696854,1.29758968,192.69,192.66,13.41184853]
[1739692697052,5.11875199,192.69,192.66,13.41184853]
[1739692698352,3.82116231,192.69,192.66,13.41184853]
[1739692698553,3.82116231,192.68,192.66,13.41184853]
[1739692698935,9.01106231,192.68,192.63,12.95811995]
[1739692699656,9.01106231,192.68,192.63,21.71895118]
[1739692699856,3.82116231,192.67,192.63,21.71895118]
[1739692700060,3.82116231,192.67,192.63,27.91015118]
[1739692700252,3.82116231,192.67,192.65,13.41184853]
[1739692700830,3.82116231,192.67,192.63,8.30710265]
[1739692701556,3.82116231,192.66,192.63,8.30710265]
[1739692702439,13.46670265,192.7,192.63,8.30710265]
[1739692702644,13.46670265,192.7,192.63,9.30710265]
[1739692703045,5.1896,192.7,192.65,13.41184853]
[1739692703248,1.29772922,192.69,192.65,13.41184853]
[1739692704244,3.82084738,192.68,192.65,13.41184853]
[1739692704645,5.1185766,192.68,192.65,13.41184853]
[1739692706063,1.29772922,192.68,192.65,13.41184853]
[1739692706563,5.1896,192.7,192.65,13.41184853]
[1739692707254,5.1896,192.7,192.63,6.2212]
[1739692707255,13.46670265,192.7,192.63,21.71895118]
[1739692707639,3.82102169,192.69,192.63,22.71895118]
[1739692708051,5.11877002,192.69,192.63,22.71895118]
[1739692708247,8.17531474,192.69,192.66,8.27710265]
[1739692708464,8.17531474,192.69,192.65,8.27710265]
[1739692708766,8.17531474,192.69,192.64,21.68895118]
[1739692708944,3.82102169,192.68,192.64,21.68895118]
[1739692710952,3.82102169,192.67,192.64,21.68895118]
[1739692712278,8.34010265,192.72,192.64,21.68895118]
[1739692712449,8.34010265,192.72,192.64,26.87995118]
[1739692713183,1.29766049,192.71,192.64,26.87995118]
[1739692713679,5.1894,192.7,192.64,26.87995118]
[1739692713883,8.24622683,192.7,192.64,26.87995118]
[1739692714355,8.24622683,192.7,192.64,21.68895118]
[1739692714549,3.05682683,192.7,192.65,8.27710265]
[1739692715155,5.11871176,192.71,192.65,8.27710265]
[1739692715156,10.30791176,192.71,192.65,8.27710265]
[1739692715356,5.11871176,192.69,192.65,8.27710265]
[1739692716153,5.11871176,192.69,192.65,13.46780265]
[1739692716482,5.11871176,192.69,192.67,13.41184853]
[1739692716766,3.82105127,192.69,192.67,13.41184853]
[1739692716953,3.82105127,192.68,192.67,13.41184853]
[1739692717345,3.82105127,192.68,192.66,13.41184853]
[1739692717749,3.82105127,192.68,192.66,14.41184853]
[1739692717957,3.82105127,192.68,192.66,22.68895118]
[1739692718354,3.82105127,192.68,192.66,27.87935118]
[1739692718955,0.063,192.72,192.66,27.87935118]
[1739692719144,5.2519,192.72,192.66,27.87935118]
[1739692719344,5.2519,192.72,192.66,22.68895118]
[1739692720067,4.35664905,192.71,192.66,22.68895118]
[1739692720565,8.18153003,192.71,192.66,22.68895118]
[1739692720969,8.18153003,192.71,192.66,14.41184853]
[1739692721165,8.18153003,192.71,192.66,27.87925118]
[1739692721369,3.05901288,192.7,192.67,8.27710265]
[1739692721874,4.35664905,192.7,192.67,8.27710265]
[1739692722059,8.18153003,192.7,192.67,13.46730265]
[1739692722369,3.05901288,192.69,192.67,13.46730265]
[1739692722950,3.05901288,192.69,192.67,8.27710265]
[1739692723450,3.05901288,192.69,192.66,27.87935118]
[1739692723662,3.82488098,192.68,192.66,27.87935118]
[1739692724173,5.12251715,192.68,192.66,27.87935118]
[1739692724669,5.12251715,192.68,192.67,8.27710265]
[1739692724867,5.12251715,192.68,192.67,9.27710265]
[1739692725258,5.12251715,192.68,192.67,10.27710265]
[1739692725458,5.12251715,192.68,192.67,30.22865118]
[1739692725765,0.063,192.72,192.71,1.0]
[1739692725971,0.063,192.72,192.71,23.68895118]
[1739692727182,0.063,192.72,192.71,28.87805118]
[1739692728486,0.063,192.72,192.71,31.17175713]
[1739692730089,0.063,192.73,192.72,15.41184853]
[1739692730261,0.063,192.73,192.72,23.68895118]
[1739692730455,0.063,192.73,192.72,22.68895118]
[1739692731672,0.063,192.73,192.72,27.87775118]
[1739692732671,0.063,192.73,192.72,28.87775118]
[1739692733080,0.063,192.73,192.72,27.87775118]
[1739692733986,0.063,192.73,192.72,28.87775118]
[1739692736765,0.063,192.73,192.72,29.65558863]
[1739692738101,0.063,192.73,192.72,62.76399923]
[1739692738384,0.063,192.73,192.72,29.65558863]
[1739692739885,0.0001,192.73,192.72,62.76399923]
[1739692740072,0.0001,192.73,192.72,29.65558863]
[1739692740271,0.0001,192.73,192.72,26.87775118]
[1739692740477,0.0001,192.73,192.72,13.41184853]
[1739692741680,0.0001,192.73,192.72,21.68895118]
[1739692745708,0.0001,192.73,192.72,27.87775118]
[1739692747111,0.0001,192.73,192.72,28.87775118]
[1739692749414,0.0001,192.73,192.72,28.90775118]
[1739692751302,0.0001,192.73,192.72,29.68559249]
[1739692752990,0.0001,192.73,192.72,62.79400309]
[1739692756611,0.0001,192.73,192.72,29.68559249]
[1739692756798,0.0001,192.73,192.72,62.79400309]
[1739692757711,0.0001,192.73,192.72,29.68559249]
[1739692757917,0.0001,192.73,192.72,28.90775118]
[1739692758917,0.063,192.82,192.81,1.0]
[1739692759219,0.063,192.82,192.81,9.27710265]
[1739692760189,0.063,192.82,192.81,22.68895118]
[1739692764297,0.063,192.82,192.81,27.87535118]
[1739692766623,0.063,192.82,192.81,28.87535118]
[1739692768928,0.063,192.82,192.81,111.01535118]
[1739692771335,0.063,192.82,192.81,82.14]
[1739692771629,0.063,192.82,192.81,95.55184853]
[1739692772405,0.063,192.82,192.81,100.73824853]
[1739692774823,0.063,192.82,192.81,110.01535118]
[1739692775307,0.063,192.82,192.81,111.01535118]
[1739692779930,0.0001,192.82,192.81,111.01535118]
[1739692784240,0.0001,192.82,192.81,95.55184853]
[1739692784815,0.0001,192.82,192.81,82.14]
[1739692785238,0.0001,192.82,192.81,95.55184853]
[1739692786236,0.0001,192.82,192.81,100.73824853]
[1739692786445,0.0001,192.82,192.81,109.01535118]
[1739692787326,0.0001,192.82,192.81,110.01535118]
[1739692792808,1.29633581,192.9,192.85,1.0]
[1739692793007,1.29633581,192.9,192.89,13.41184853]
[1739692793939,1.6192,192.91,192.89,13.41184853]
[1739692796541,0.063,192.92,192.91,13.41184853]
[1739692796717,0.063,192.92,192.91,21.68895118]
[1739692796921,0.063,192.92,192.91,22.68895118]
[1739692798140,0.063,192.92,192.91,21.68895118]
[1739692798938,0.063,192.92,192.91,26.87265118]
[1739692799949,0.063,192.92,192.91,27.87265118]
[1739692800914,0.063,192.92,192.91,14.41184853]
[1739692802550,0.063,192.92,192.91,22.68895118]
[1739692803355,0.063,192.92,192.91,14.41184853]
[1739692804240,0.063,192.92,192.91,13.41184853]
[1739692804547,0.063,192.92,192.91,9.27710265]
[1739692804746,0.063,192.92,192.89,21.68895118]
[1739692804947,0.063,192.92,192.88,8.27710265]
[1739692805248,0.063,192.92,192.86,90.39710265]
[1739692805624,0.063,192.92,192.87,13.41184853]
[1739692806332,0.063,192.92,192.86,90.39710265]
[1739692806333,0.063,192.92,192.88,8.27710265]
[1739692806816,0.063,192.92,192.89,8.27710265]
[1739692807017,0.063,192.92,192.91,8.27710265]
[1739692808359,0.063,192.92,192.91,26.87265118]
[1739692808536,0.063,192.92,192.91,27.87265118]
[1739692812760,0.063,192.92,192.91,28.87265118]
[1739692812939,0.063,192.92,192.91,29.64983439]
[1739692813951,0.063,192.92,192.91,28.87265118]
[1739692814454,0.063,192.92,192.91,27.87265118]
[1739692814663,0.063,192.92,192.91,22.68895118]
[1739692814955,0.063,192.92,192.91,27.87265118]
[1739692815445,0.063,192.92,192.91,28.87265118]
[1739692815832,0.063,192.92,192.91,27.87265118]
[1739692818451,0.063,192.92,192.91,109.97265118]
[1739692821545,0.063,192.92,192.91,95.51184853]
[1739692821870,0.063,192.92,192.91,103.78895118]
[1739692824958,0.063,192.92,192.91,108.97265118]
[1739692825333,0.063,192.92,192.91,90.37710265]
[1739692825534,0.063,192.92,192.91,82.1]
[1739692827539,5.2464,192.92,192.91,82.1]
[1739692827745,13.52350265,192.92,192.91,82.1]
[1739692828060,5.2464,192.92,192.87,0.03]
[1739692829964,8.27710265,192.89,192.87,0.03]
[1739692830147,8.27710265,192.88,192.87,0.03]
[1739692830857,8.27710265,192.89,192.87,0.03]
[1739692831448,8.27710265,192.9,192.87,0.03]
[1739692832548,13.46120265,192.9,192.87,0.03]
[1739692833242,5.1841,192.9,192.87,0.03]
[1739692833441,28.34010265,192.92,192.87,0.03]
[1739692834373,8.27710265,192.9,192.87,0.03]
[1739692834544,8.27710265,192.89,192.87,0.03]
[1739692834746,5.1845,192.88,192.87,0.03]
[1739692837273,15.00940265,192.88,192.87,0.03]
[1739692839669,16.3059765,192.88,192.87,0.03]
[1739692839874,16.3059765,192.88,192.87,0.0001]
[1739692841179,19.34776898,192.88,192.87,0.0001]
[1739692842768,16.3059765,192.88,192.87,0.0001]
[1739692844078,15.00940265,192.88,192.87,0.0001]
[1739692856392,15.07240265,192.88,192.87,0.0001]
[1739692862002,13.52460265,192.88,192.87,0.0001]
[1739692864185,14.82118417,192.88,192.87,0.0001]
[1739692865398,6.54408152,192.88,192.87,0.0001]
[1739692867612,5.2475,192.88,192.87,0.0001]
[1739692868014,0.063,192.88,192.87,0.0001]
[1739692868199,8.34010265,192.88,192.87,0.0001]
[1739692870306,13.52460265,192.88,192.87,0.0001]
[1739692870611,16.57832026,192.88,192.87,0.0001]
[1739692871080,17.87499833,192.88,192.87,0.0001]
[1739692874304,18.87499833,192.88,192.87,0.0001]
[1739692874507,8.27710265,192.82,192.81,0.03]
[1739692875394,11.33082026,192.82,192.81,0.03]
[1739692875714,17.81359833,192.82,192.81,0.03]
[1739692876313,17.81359833,192.82,192.75,82.14]
[1739692876513,8.27710265,192.77,192.75,82.14]
[1739692877015,8.27710265,192.77,192.72,0.03]
[1739692877608,13.46470265,192.77,192.72,0.03]
[1739692877806,5.1876,192.77,192.72,0.03]
[1739692877996,33.46430265,192.79,192.73,13.41184853]
[1739692878205,6.48327807,192.81,192.75,8.27710265]
[1739692878596,1.29667807,192.81,192.73,14.41184853]
[1739692878803,1.29667807,192.81,192.77,8.27710265]
[1739692878999,5.1862,192.82,192.77,8.27710265]
[1739692879395,5.1862,192.82,192.76,8.27710265]
[1739692879900,5.1859,192.83,192.76,8.27710265]
[1739692880308,0.063,192.81,192.76,13.41184853]
[1739692882122,5.2494,192.81,192.76,13.41184853]
[1739692882941,0.063,192.81,192.76,21.68895118]
[1739692883298,0.063,192.81,192.76,26.87655118]
[1739692883705,0.063,192.81,192.78,8.27710265]
[1739692883901,0.063,192.81,192.79,8.27710265]
[1739692884127,0.063,192.81,192.8,21.68895118]
[1739692885635,0.063,192.81,192.8,26.87565118]
[1739692886729,0.063,192.81,192.8,21.68895118]
[1739692887826,0.063,192.81,192.8,26.87565118]
[1739692888028,0.063,192.81,192.8,27.87565118]
[1739692889631,0.063,192.81,192.8,26.87565118]
[1739692890010,0.063,192.81,192.8,27.87565118]
[1739692891540,0.063,192.88,192.86,13.41184853]
[1739692891836,0.063,192.88,192.87,21.68895118]
[1739692892711,0.063,192.88,192.87,26.87375118]
[1739692893135,0.063,192.88,192.87,27.87375118]
[1739692893713,0.063,192.88,192.87,29.65112227]
[1739692894331,0.063,192.88,192.87,31.71025574]
[1739692894712,0.063,192.88,192.87,29.65112227]
[1739692894914,0.063,192.9,192.89,1.0]
[1739692895135,0.063,192.9,192.89,24.46621285]
[1739692896318,5.1816,192.99,192.89,24.46621285]
[1739692896319,0.063,193.02,192.97,1.0]
[1739692896518,0.063,193.02,192.99,8.27710265]
[1739692897116,0.063,193.02,192.99,21.68895118]
[1739692899710,0.063,193.02,192.99,27.87055118]
[1739692899933,0.063,193.02,192.99,30.25305646]
[1739692900631,0.063,193.02,193.0,15.41184853]
[1739692900807,0.063,193.02,193.0,23.68895118]
[1739692901635,0.063,193.02,193.0,33.46916697]
[1739692901827,0.063,193.08,193.04,1.0]
[1739692902012,0.063,193.08,193.07,26.28786697]
[1739692902919,0.063,193.08,193.07,27.28786697]
[1739692904236,0.063,193.08,193.07,26.28786697]
[1739692904827,0.063,193.08,193.07,13.41184853]
[1739692905139,0.063,193.08,193.03,12.87601844]
[1739692905330,0.063,193.08,193.02,12.87601844]
[1739692905537,0.063,193.08,193.04,12.87601844]
[1739692905723,0.063,193.08,193.06,12.87601844]
[1739692906257,0.063,193.08,193.07,26.28786697]
[1739692911531,0.063,193.08,193.06,12.87601844]
[1739692911759,0.063,193.08,193.05,12.87601844]
[1739692911956,0.063,193.08,193.04,12.87601844]
[1739692912338,0.063,193.08,193.05,13.41184853]
[1739692912825,0.063,193.08,193.07,12.87601844]
[1739692914250,0.063,193.08,193.05,12.87601844]
[1739692914556,0.063,193.08,193.04,12.87601844]
[1739692914725,0.063,193.08,193.05,13.41184853]
[1739692915425,0.063,193.08,193.03,26.28786697]
[1739692915620,0.063,193.08,193.05,13.41184853]
[1739692916627,0.063,193.08,193.05,26.28786697]
[1739692916827,0.063,193.08,193.07,12.87601844]
[1739692917946,0.063,193.08,193.07,27.28786697]
[1739692919328,0.063,193.08,193.07,32.46726697]
[1739692919528,0.063,193.08,193.07,27.28786697]
[1739692919827,0.063,193.08,193.07,26.28786697]
[1739692920357,0.063,193.08,193.07,27.28786697]
[1739692921138,0.063,193.08,193.07,32.46726697]
[1739692921643,0.063,193.08,193.07,26.28786697]
[1739692921843,0.063,193.08,193.07,32.46726697]
[1739692923732,0.063,193.08,193.07,27.82685573]
[1739692923937,0.063,193.08,193.07,21.64745573]
[1739692925843,0.063,193.08,193.07,13.41184853]
[1739692926262,0.063,193.08,193.07,21.64745573]
[1739692927358,0.063,193.08,193.07,13.41184853]
[1739692929657,0.063,193.08,193.04,8.2356072]
[1739692929862,0.063,193.08,193.02,90.2956072]
[1739692930655,0.063,193.08,193.03,21.64745573]
[1739692931254,0.063,193.08,193.04,8.2356072]
[1739692931965,0.063,193.08,193.05,8.2356072]
[1739692932262,0.063,193.08,193.06,8.2356072]
[1739692934259,0.063,193.08,193.04,8.2356072]
[1739692934666,0.063,193.08,193.06,13.41184853]
[1739692934962,0.063,193.08,193.06,21.64745573]
[1739692935164,0.063,193.08,193.02,88.2406]
[1739692935165,0.063,193.08,193.07,21.64745573]
[1739692936344,0.063,193.08,193.07,26.82685573]
[1739692936668,0.063,193.08,193.07,27.60347533]
[1739692937668,0.063,193.08,193.07,32.23662631]
[1739692938068,0.063,193.08,193.07,33.23662631]
[1739692941883,0.063,193.1,193.09,1.0]
[1739692942062,0.063,193.1,193.09,28.05705565]
[1739692943871,0.063,193.1,193.09,34.23595565]
[1739692946274,0.063,193.1,193.09,36.33776087]
[1739692946459,0.063,193.1,193.09,118.35776087]
[1739692946658,0.063,193.1,193.09,117.58131193]
[1739692947796,0.063,193.12,193.11,15.41184853]
[1739692948080,0.063,193.14,193.13,21.0]
[1739692948276,0.063,193.14,193.13,47.28060671]
[1739692950463,0.063,193.14,193.13,52.45840671]
[1739692950662,0.063,193.14,193.13,46.28060671]
[1739692952269,0.063,193.14,193.13,51.45840671]
[1739692952576,0.063,193.14,193.13,52.45840671]
[1739692954783,0.063,193.14,193.13,53.45840671]
[1739692955672,0.063,193.14,193.13,54.23464687]
[1739692955873,0.063,193.14,193.13,52.45840671]
[1739692956965,0.063,193.14,193.13,53.45840671]
[1739692957385,0.063,193.14,193.13,52.45840671]
[1739692957582,0.063,193.14,193.13,48.81948375]
[1739692958104,0.063,193.14,193.13,47.81948375]
[1739692959084,0.063,193.2,193.15,1.0]
[1739692959284,0.063,193.2,193.15,21.64168375]
[1739692959583,0.063,193.2,193.15,22.64168375]
[1739692960177,0.063,193.2,193.15,21.64168375]
[1739692961482,0.063,193.2,193.15,27.81898375]
[1739692963365,0.063,193.2,193.15,21.64168375]
[1739692963991,0.063,193.2,193.15,27.81898375]
[1739692964182,0.063,193.2,193.15,26.81898375]
[1739692964522,0.063,193.2,193.15,27.81898375]
[1739692970797,0.063,193.2,193.15,22.64168375]
[1739692971692,0.063,193.2,193.15,27.81898375]
[1739692972009,0.063,193.2,193.15,26.81898375]
[1739692973397,0.063,193.2,193.15,27.81898375]
[1739692974275,0.063,193.2,193.18,1.0]
[1739692974598,0.063,193.2,193.19,21.64168375]
[1739692980803,0.063,193.2,193.18,8.22983522]
[1739692981098,0.063,193.2,193.17,8.22983522]
[1739692982205,0.063,193.2,193.15,8.22983522]
[1739692983487,5.2389,193.2,193.15,8.22983522]
[1739692983990,5.2389,193.2,193.16,8.22983522]
[1739692984602,5.2389,193.2,193.17,8.22983522]
[1739692986989,5.2389,193.2,193.16,8.22983522]
[1739692987189,5.2389,193.2,193.17,8.22983522]
[1739692988608,5.2389,193.2,193.15,8.22983522]
[1739692988913,5.2389,193.2,193.16,8.22983522]
[1739692989614,5.2389,193.2,193.17,8.22983522]
[1739692990414,5.2389,193.2,193.16,8.22983522]
[1739692994601,5.2389,193.2,193.17,8.22983522]
[1739692995624,0.063,193.2,193.18,8.22983522]
[1739692995821,0.063,193.2,193.19,21.64168375]
[1739692997794,0.063,193.2,193.19,26.81788375]
[1739693008637,0.063,193.2,193.19,27.81788375]
[1739693008944,0.063,193.21,193.19,60.73722463]
[1739693009102,0.063,193.21,193.2,55.56102463]
[1739693010124,11.8763032,193.3,193.2,55.56102463]
[1739693010327,6.7030032,193.3,193.27,8.22983522]
[1739693010911,11.8763032,193.3,193.27,8.22983522]
[1739693011315,11.8763032,193.3,193.25,8.22983522]
[1739693011705,11.8763032,193.3,193.24,8.22983522]
[1739693011913,11.8763032,193.3,193.25,8.22983522]
[1739693014519,11.8763032,193.3,193.25,8.29283522]
[1739693014832,11.9063032,193.3,193.25,8.29283522]
[1739693016110,1.6635,193.3,193.26,8.22983522]
[1739693016310,1.6635,193.3,193.27,21.64168375]
[1739693016724,6.8369,193.3,193.26,8.22983522]
[1739693017733,1.6635,193.3,193.27,13.41184853]
[1739693019440,6.8369,193.3,193.27,13.41184853]
[1739693021727,6.8369,193.3,193.26,8.22983522]
[1739693025742,6.8369,193.3,193.26,8.22983522]
[1739693026316,6.8369,193.3,193.25,8.29283522]
[1739693026837,6.8369,193.3,193.26,8.22983522]
[1739693037551,6.8369,193.3,193.25,8.29283522]
[1739693037744,6.8369,193.3,193.25,0.063]
[1739693038859,6.8369,193.3,193.26,0.063]
[1739693040231,0.03,193.3,193.26,8.29283522]
[1739693040431,5.2033,193.3,193.26,8.29283522]
[1739693040948,0.03,193.3,193.26,8.29283522]
[1739693041642,0.03,193.3,193.26,0.063]
[1739693042554,8.22983522,193.28,193.26,0.063]
[1739693043031,5.1741,193.27,193.26,0.063]
[1739693045242,13.40393522,193.27,193.26,0.063]
[1739693049153,5.1741,193.27,193.26,0.063]
[1739693049852,20.0,193.27,193.26,0.063]
[1739693050058,5.1738,193.28,193.26,0.063]
[1739693050235,13.40363522,193.28,193.26,0.063]
[1739693052337,8.22983522,193.27,193.26,0.063]
[1739693053058,90.32983522,193.27,193.26,0.063]
[1739693053453,95.50393522,193.27,193.25,0.063]
[1739693053636,8.22983522,193.26,193.25,0.063]
[1739693054762,13.40413522,193.26,193.25,0.063]
[1739693055142,13.25395622,193.26,193.25,0.063]